[Event "22nd ETCC Women 2019"]
[Site "Batumi"]
[Date "2019.10.27"]
[Round "4.22"]
[White "Injac, Teodora"]
[Black "Janzelj, Lara"]
[Result "1-0"]
[ECO "A07"]
[WhiteElo "2257"]
[BlackElo "2159"]
[Annotator "NA"]
[PlyCount "67"]
[EventDate "2019.10.24"]
[EventType "team-tourn"]
[EventCountry "GEO"]
[SourceTitle "playchess.com"]
[Source "ChessBase"]
[SourceQuality "1"]
[WhiteTeam "Serbia"]
[BlackTeam "Slovenia"]
[WhiteTeamCountry "SRB"]
[BlackTeamCountry "SLO"]
[TimeControl "40/5400+30:1800+30"]

1. Nf3 {[%emt 0:00:00]} d5 {[%emt 0:00:00]} 2. g3 {[%emt 0:00:07]} Nf6 {[%emt 0:00:00]} 3. Bg2 {[%emt 0:00:23]} c6 {[%emt 0:00:00]} 4. O-O {[%emt 0:02:12]} Bg4 {[%emt 0:00:00]} 5. c4 {[%emt 0:01:57]} e6 {[%emt 0:00:00]} 6. d3 {[%emt 0:01:09]} Be7 {[%emt 0:01:11]} 7. h3 {[%emt 0:08:24]} Bh5 {[%emt 0:01:47]} 8. Qb3 {[%emt 0:09:55]} Qc8 {[%emt 0:03:34]} 9. Be3 {[%emt 0:04:11]} O-O {[%emt 0:04:04]} 10. Nc3 {[%emt 0:02:06]} Rd8 {[%emt 0:07:27]} 11. cxd5 {[%emt 0:09:16]} exd5 {[%emt 0:02:39]} 12. Bd4 {[%emt 0:08:05]} Nbd7 {[%emt 0:05:14]} 13. g4 {[%emt 0:06:57]} Bg6 {[%emt 0:01:05]} 14. Rac1 {[%emt 0:00:07]} Nc5 {[%emt 0:13:51]} 15. Qa3 {[%emt 0:08:28]} Nfd7 {[%emt 0:01:22]} 16. b4 {[%emt 0:12:27]} Ne6 {[%emt 0:03:00]} 17. Nxd5 {[%emt 0:00:46]} Bf8 {[%emt 0:00:05]} 18. Qb2 {[%emt 0:10:36]} Qb8 {[%emt 0:06:58]} 19. Ne3 {[%emt 0:01:20]} Nxd4 {[%emt 0:00:41]} 20. Nxd4 {[%emt 0:00:50]} Qe5 {[%emt 0:05:03]} 21. Nc4 {[%emt 0:00:46]} Qf6 {[%emt 0:01:12]} 22. a3 {[%emt 0:02:23]} b5 {[%emt 0:05:34]} 23. Nxc6 {[%emt 0:00:58]} bxc4 {[%emt 0:00:10]} 24. Qxf6 {[%emt 0:00:20]} Nxf6 {[%emt 0:00:17]} 25. Nxd8 {[%emt 0:00:10]} Rxd8 {[%emt 0:00:01]} 26. Rxc4 {[%emt 0:00:17]} h5 {[%emt 0:02:36]} 27. Rfc1 {[%emt 0:00:27]} hxg4 {[%emt 0:01:31]} 28. hxg4 {[%emt 0:00:02]} Re8 {[%emt 0:01:43]} 29. Bf3 {[%emt 0:00:41]} Re5 {[%emt 0:01:20]} 30. Rc8 {[%emt 0:01:52]} Rg5 {[%emt 0:01:48]} 31. R1c5 {[%emt 0:00:39]} Rxc5 {[%emt 0:02:20]} 32. bxc5 {[%emt 0:00:03]} Nd7 {[%emt 0:00:12]} 33. c6 {[%emt 0:00:31]} Nb6 {[%emt 0:00:04]} 34. Rb8 {[%emt 0:00:28]} 1-0

[Event "22nd ETCC Women 2019"]
[Site "Batumi"]
[Date "2019.10.27"]
[Round "4.22"]
[White "Frisk, Ellinor"]
[Black "Barbier, Astrid"]
[Result "1-0"]
[ECO "B06"]
[WhiteElo "2227"]
[BlackElo "1974"]
[Annotator "NA"]
[PlyCount "67"]
[EventDate "2019.10.24"]
[EventType "team-tourn"]
[EventCountry "GEO"]
[SourceTitle "playchess.com"]
[Source "ChessBase"]
[SourceQuality "1"]
[WhiteTeam "Sweden"]
[BlackTeam "Belgium"]
[WhiteTeamCountry "SWE"]
[BlackTeamCountry "BEL"]
[TimeControl "40/5400+30:1800+30"]

1. d4 {[%emt 0:00:00]} g6 {[%emt 0:00:00]} 2. e4 {[%emt 0:00:14]} Bg7 {[%emt 0:00:00]} 3. Nf3 {[%emt 0:04:42]} d6 {[%emt 0:02:04]} 4. Bc4 {[%emt 0:01:22]} Nf6 {[%emt 0:04:58]} 5. Qe2 {[%emt 0:00:43]} c6 {[%emt 0:10:16]} 6. Bd3 {[%emt 0:06:06]} Nbd7 {[%emt 0:07:23]} 7. O-O {[%emt 0:05:32]} c5 {[%emt 0:10:31]} 8. c3 {[%emt 0:01:04]} cxd4 {[%emt 0:12:04]} 9. cxd4 {[%emt 0:00:22]} Nb6 {[%emt 0:00:43]} 10. h3 {[%emt 0:08:49]} O-O {[%emt 0:03:07]} 11. Be3 {[%emt 0:01:14]} Bd7 {[%emt 0:05:12]} 12. Nc3 {[%emt 0:00:15]} Bc6 {[%emt 0:03:00]} 13. Rac1 {[%emt 0:03:46]} e6 {[%emt 0:06:01]} 14. Rc2 {[%emt 0:07:04]} Qd7 {[%emt 0:04:11]} 15. Rfc1 {[%emt 0:00:18]} Rfc8 {[%emt 0:01:05]} 16. b3 {[%emt 0:01:24]} Qd8 {[%emt 0:00:45]} 17. Qd2 {[%emt 0:03:45]} Ne8 {[%emt 0:06:11]} 18. a4 {[%emt 0:05:11]} a5 {[%emt 0:04:45]} 19. Qe2 {[%emt 0:00:54]} Bd7 {[%emt 0:01:23]} 20. Nd2 {[%emt 0:03:12]} f5 {[%emt 0:03:35]} 21. exf5 {[%emt 0:04:32]} exf5 {[%emt 0:00:29]} 22. Nc4 {[%emt 0:02:06]} Nxc4 {[%emt 0:01:48]} 23. Bxc4+ {[%emt 0:00:04]} Kh8 {[%emt 0:00:31]} 24. Nd5 {[%emt 0:01:34]} Bc6 {[%emt 0:04:22]} 25. Qd2 {[%emt 0:01:19]} Nf6 {[%emt 0:02:57]} 26. Nxf6 {[%emt 0:01:36]} Bxf6 {[%emt 0:00:54]} 27. Be6 {[%emt 0:12:13]} Rcb8 {[%emt 0:02:37]} 28. d5 {[%emt 0:01:30]} Bd7 {[%emt 0:00:11]} 29. Bxd7 {[%emt 0:02:39]} Qxd7 {[%emt 0:00:03]} 30. Rc7 {[%emt 0:00:09]} Qe8 {[%emt 0:00:53]} 31. Bd4 {[%emt 0:01:21]} Bxd4 {[%emt 0:00:58]} 32. Qxd4+ {[%emt 0:00:28]} Qe5 {[%emt 0:00:10]} 33. Qh4 {[%emt 0:01:44]} h5 {[%emt 0:00:31]} 34. Qg5 {[%emt 0:00:43]} 1-0

[Event "22nd ETCC Women 2019"]
[Site "Batumi"]
[Date "2019.10.27"]
[Round "4.23"]
[White "Rozman, Monika"]
[Black "Velikic, Adela"]
[Result "0-1"]
[ECO "B73"]
[WhiteElo "2122"]
[BlackElo "2275"]
[Annotator "NA"]
[PlyCount "74"]
[EventDate "2019.10.24"]
[EventType "team-tourn"]
[EventCountry "GEO"]
[SourceTitle "playchess.com"]
[Source "ChessBase"]
[SourceQuality "1"]
[WhiteTeam "Slovenia"]
[BlackTeam "Serbia"]
[WhiteTeamCountry "SLO"]
[BlackTeamCountry "SRB"]
[TimeControl "40/5400+30:1800+30"]

1. e4 {[%emt 0:00:00]} c5 {[%emt 0:00:00]} 2. Nf3 {[%emt 0:00:00]} Nc6 {[%emt 0:00:00]} 3. Nc3 {[%emt 0:01:44]} d6 {[%emt 0:01:31]} 4. d4 {[%emt 0:01:11]} cxd4 {[%emt 0:00:10]} 5. Nxd4 {[%emt 0:00:06]} Nf6 {[%emt 0:00:07]} 6. Be2 {[%emt 0:03:07]} g6 {[%emt 0:00:38]} 7. Be3 {[%emt 0:01:36]} Bg7 {[%emt 0:00:46]} 8. O-O {[%emt 0:02:54]} O-O {[%emt 0:00:30]} 9. h3 {[%emt 0:07:34]} Bd7 {[%emt 0:05:38]} 10. Qd2 {[%emt 0:00:51]} Nxd4 {[%emt 0:11:14]} 11. Bxd4 {[%emt 0:00:56]} Bc6 {[%emt 0:01:00]} 12. Bf3 {[%emt 0:02:03]} Nd7 {[%emt 0:13:13]} 13. Bxg7 {[%emt 0:03:07]} Kxg7 {[%emt 0:00:29]} 14. Rad1 {[%emt 0:02:34]} Qb6 {[%emt 0:08:02]} 15. Qd4+ {[%emt 0:04:07]} Qxd4 {[%emt 0:03:21]} 16. Rxd4 {[%emt 0:00:07]} Rac8 {[%emt 0:07:26]} 17. Re1 {[%emt 0:07:22]} Rc7 {[%emt 0:07:52]} 18. Bd1 {[%emt 0:10:28]} f6 {[%emt 0:06:03]} 19. Nd5 {[%emt 0:17:37]} Bxd5 {[%emt 0:00:21]} 20. exd5 {[%emt 0:00:08]} Rf7 {[%emt 0:08:09]} 21. c4 {[%emt 0:02:28]} f5 {[%emt 0:02:23]} 22. f4 {[%emt 0:06:10]} Nc5 {[%emt 0:04:25]} 23. b4 {[%emt 0:04:33]} Ne4 {[%emt 0:01:42]} 24. Bc2 {[%emt 0:01:33]} Nf6 {[%emt 0:07:27]} 25. Bb3 {[%emt 0:00:20]} b6 {[%emt 0:00:53]} 26. Kf2 {[%emt 0:00:22]} Rf8 {[%emt 0:00:55]} 27. Kf3 {[%emt 0:01:04]} h5 {[%emt 0:03:38]} 28. g3 {[%emt 0:01:38]} Ra8 {[%emt 0:00:28]} 29. Rd3 {[%emt 0:08:34]} a5 {[%emt 0:02:31]} 30. a3 {[%emt 0:00:17]} axb4 {[%emt 0:00:34]} 31. axb4 {[%emt 0:00:22]} Ne4 {[%emt 0:01:11]} 32. g4 {[%emt 0:04:21]} Ra3 {[%emt 0:00:35]} 33. Ke3 {[%emt 0:00:54]} Kf6 {[%emt 0:02:00]} 34. gxh5 {[%emt 0:02:26]} gxh5 {[%emt 0:00:04]} 35. Kd4 {[%emt 0:01:11]} Rc8 {[%emt 0:00:57]} 36. Rg1 {[%emt 0:02:53]} h4 {[%emt 0:00:02]} 37. Re3 {[%emt 0:01:12]} Nd2 {[%emt 0:01:16]} 0-1

[Event "22nd ETCC Women 2019"]
[Site "Batumi"]
[Date "2019.10.27"]
[Round "4.23"]
[White "Mabille, Natacha"]
[Black "Cramling Bellon, Anna"]
[Result "0-1"]
[ECO "B43"]
[WhiteElo "1939"]
[BlackElo "2164"]
[Annotator "NA"]
[PlyCount "68"]
[EventDate "2019.10.24"]
[EventType "team-tourn"]
[EventCountry "GEO"]
[SourceTitle "playchess.com"]
[Source "ChessBase"]
[SourceQuality "1"]
[WhiteTeam "Belgium"]
[BlackTeam "Sweden"]
[WhiteTeamCountry "BEL"]
[BlackTeamCountry "SWE"]
[TimeControl "40/5400+30:1800+30"]

1. e4 {[%emt 0:00:00]} c5 {[%emt 0:00:00]} 2. Nf3 {[%emt 0:00:00]} e6 {[%emt 0:00:00]} 3. d4 {[%emt 0:00:28]} cxd4 {[%emt 0:00:00]} 4. Nxd4 {[%emt 0:00:03]} a6 {[%emt 0:00:00]} 5. Nc3 {[%emt 0:00:47]} Qc7 {[%emt 0:00:59]} 6. a3 {[%emt 0:07:56]} Nf6 {[%emt 0:09:57]} 7. Be2 {[%emt 0:03:47]} b5 {[%emt 0:13:25]} 8. O-O {[%emt 0:05:59]} Bb7 {[%emt 0:00:14]} 9. Qd3 {[%emt 0:01:48]} Nc6 {[%emt 0:07:51]} 10. Bg5 {[%emt 0:09:59]} Nxd4 {[%emt 0:18:57]} 11. Qxd4 {[%emt 0:00:42]} Bc5 {[%emt 0:00:05]} 12. Qd3 {[%emt 0:01:58]} Qe5 {[%emt 0:00:34]} 13. Bxf6 {[%emt 0:05:29]} Qxf6 {[%emt 0:10:12]} 14. Bf3 {[%emt 0:03:57]} Qe5 {[%emt 0:00:39]} 15. Rfd1 {[%emt 0:04:55]} Bc6 {[%emt 0:00:20]} 16. b4 {[%emt 0:05:40]} Be7 {[%emt 0:03:21]} 17. Ne2 {[%emt 0:01:19]} O-O {[%emt 0:01:39]} 18. Nd4 {[%emt 0:02:39]} a5 {[%emt 0:06:51]} 19. Rab1 {[%emt 0:07:59]} axb4 {[%emt 0:01:33]} 20. axb4 {[%emt 0:00:07]} Ra4 {[%emt 0:01:13]} 21. Nxc6 {[%emt 0:04:07]} dxc6 {[%emt 0:00:11]} 22. Qd7 {[%emt 0:00:56]} Bxb4 {[%emt 0:08:09]} 23. Qxc6 {[%emt 0:01:19]} g6 {[%emt 0:08:28]} 24. c4 {[%emt 0:14:18]} Rb8 {[%emt 0:02:31]} 25. h3 {[%emt 0:07:13]} Kg7 {[%emt 0:03:11]} 26. Be2 {[%emt 0:04:06]} Bc5 {[%emt 0:01:58]} 27. Rxb5 {[%emt 0:01:54]} Rxb5 {[%emt 0:00:02]} 28. cxb5 {[%emt 0:03:26]} Rxe4 {[%emt 0:00:13]} 29. Bf3 {[%emt 0:00:53]} Re1+ {[%emt 0:00:36]} 30. Rxe1 {[%emt 0:00:01]} Qxe1+ {[%emt 0:00:07]} 31. Kh2 {[%emt 0:00:04]} Bxf2 {[%emt 0:00:58]} 32. h4 {[%emt 0:00:48]} Qg1+ {[%emt 0:00:49]} 33. Kh3 {[%emt 0:00:05]} Qh1+ {[%emt 0:00:06]} 34. Kg4 {[%emt 0:00:03]} Qxh4# {[%emt 0:00:09]} 0-1

[Event "22nd ETCC Women 2019"]
[Site "Batumi"]
[Date "2019.10.27"]
[Round "4.24"]
[White "Gajcin, Marina"]
[Black "Vidic, Teja"]
[Result "1-0"]
[ECO "B10"]
[WhiteElo "2262"]
[BlackElo "2174"]
[Annotator "NA"]
[PlyCount "81"]
[EventDate "2019.10.24"]
[EventType "team-tourn"]
[EventCountry "GEO"]
[SourceTitle "playchess.com"]
[Source "ChessBase"]
[SourceQuality "1"]
[WhiteTeam "Serbia"]
[BlackTeam "Slovenia"]
[WhiteTeamCountry "SRB"]
[BlackTeamCountry "SLO"]
[TimeControl "40/5400+30:1800+30"]

1. e4 {[%emt 0:00:00]} c6 {[%emt 0:00:00]} 2. Nf3 {[%emt 0:00:50]} d5 {[%emt 0:00:00]} 3. Nc3 {[%emt 0:00:05]} Nf6 {[%emt 0:00:00]} 4. e5 {[%emt 0:00:29]} Ne4 {[%emt 0:00:00]} 5. d4 {[%emt 0:00:08]} Nxc3 {[%emt 0:00:09]} 6. bxc3 {[%emt 0:00:04]} c5 {[%emt 0:00:07]} 7. c4 {[%emt 0:05:51]} Nc6 {[%emt 0:00:09]} 8. Be2 {[%emt 0:06:44]} cxd4 {[%emt 0:06:54]} 9. Nxd4 {[%emt 0:00:58]} Nxe5 {[%emt 0:04:57]} 10. cxd5 {[%emt 0:00:38]} Qxd5 {[%emt 0:10:56]} 11. O-O {[%emt 0:01:20]} e6 {[%emt 0:00:20]} 12. Nb5 {[%emt 0:08:07]} Qc6 {[%emt 0:09:11]} 13. Bf4 {[%emt 0:01:59]} f6 {[%emt 0:01:41]} 14. Rb1 {[%emt 0:02:09]} a6 {[%emt 0:06:43]} 15. c3 {[%emt 0:18:47]} Be7 {[%emt 0:09:57]} 16. Nd4 {[%emt 0:07:42]} Qd5 {[%emt 0:13:34]} 17. Re1 {[%emt 0:10:21]} O-O {[%emt 0:02:39]} 18. c4 {[%emt 0:14:21]} Qe4 {[%emt 0:04:40]} 19. Bxe5 {[%emt 0:02:38]} fxe5 {[%emt 0:00:55]} 20. Nf3 {[%emt 0:01:25]} Rd8 {[%emt 0:09:03]} 21. Qb3 {[%emt 0:01:09]} Qf5 {[%emt 0:00:40]} 22. Bd1 {[%emt 0:02:22]} b5 {[%emt 0:04:48]} 23. Bc2 {[%emt 0:01:09]} Qf4 {[%emt 0:02:47]} 24. cxb5 {[%emt 0:00:42]} axb5 {[%emt 0:00:23]} 25. Rxe5 {[%emt 0:02:10]} Ra3 {[%emt 0:01:08]} 26. Qxb5 {[%emt 0:00:59]} Bd7 {[%emt 0:03:56]} 27. Qe2 {[%emt 0:01:21]} Rxf3 {[%emt 0:01:12]} 28. gxf3 {[%emt 0:01:02]} Bd6 {[%emt 0:01:28]} 29. Rh5 {[%emt 0:00:27]} g6 {[%emt 0:00:34]} 30. Rh3 {[%emt 0:00:37]} Kg7 {[%emt 0:04:24]} 31. Rd1 {[%emt 0:01:24]} Bc6 {[%emt 0:00:39]} 32. Qxe6 {[%emt 0:01:33]} Qg5+ {[%emt 0:01:09]} 33. Qg4 {[%emt 0:00:26]} Qf6 {[%emt 0:00:27]} 34. Qh4 {[%emt 0:00:58]} Qxh4 {[%emt 0:00:53]} 35. Rxh4 {[%emt 0:00:01]} Bxf3 {[%emt 0:00:02]} 36. Rd3 {[%emt 0:02:37]} Be7 {[%emt 0:01:00]} 37. Rxd8 {[%emt 0:00:31]} Bxd8 {[%emt 0:00:09]} 38. Rd4 {[%emt 0:00:42]} Bb6 {[%emt 0:00:50]} 39. Rd7+ {[%emt 0:00:07]} Kh6 {[%emt 0:00:19]} 40. a4 {[%emt 0:00:00]} Kg5 {[%emt 0:00:00]} 41. Rxh7 {[%emt 0:01:17]} 1-0

[Event "22nd ETCC Women 2019"]
[Site "Batumi"]
[Date "2019.10.27"]
[Round "4.24"]
[White "Bengtsson, Siv"]
[Black "Cuvelier, Annelies"]
[Result "1-0"]
[ECO "C77"]
[WhiteElo "2086"]
[BlackElo "1844"]
[Annotator "NA"]
[PlyCount "159"]
[EventDate "2019.10.24"]
[EventType "team-tourn"]
[EventCountry "GEO"]
[SourceTitle "playchess.com"]
[Source "ChessBase"]
[SourceQuality "1"]
[WhiteTeam "Sweden"]
[BlackTeam "Belgium"]
[WhiteTeamCountry "SWE"]
[BlackTeamCountry "BEL"]
[TimeControl "40/5400+30:1800+30"]

1. e4 {[%emt 0:00:00]} e5 {[%emt 0:00:00]} 2. Nf3 {[%emt 0:00:00]} Nc6 {[%emt 0:00:00]} 3. Bb5 {[%emt 0:00:00]} a6 {[%emt 0:00:00]} 4. Ba4 {[%emt 0:00:00]} Nf6 {[%emt 0:00:00]} 5. d3 {[%emt 0:00:06]} b5 {[%emt 0:00:35]} 6. Bb3 {[%emt 0:00:08]} d6 {[%emt 0:00:11]} 7. a4 {[%emt 0:03:27]} Bg4 {[%emt 0:04:24]} 8. c3 {[%emt 0:06:55]} Be7 {[%emt 0:02:23]} 9. h3 {[%emt 0:05:40]} Bh5 {[%emt 0:01:00]} 10. O-O {[%emt 0:01:51]} h6 {[%emt 0:07:38]} 11. Nbd2 {[%emt 0:05:08]} O-O {[%emt 0:05:46]} 12. Re1 {[%emt 0:02:28]} Na5 {[%emt 0:04:23]} 13. Bc2 {[%emt 0:12:38]} c5 {[%emt 0:00:36]} 14. Nf1 {[%emt 0:03:53]} Nc6 {[%emt 0:09:16]} 15. Ng3 {[%emt 0:01:41]} Bg6 {[%emt 0:00:55]} 16. Nh4 {[%emt 0:05:09]} Bh7 {[%emt 0:01:43]} 17. Nhf5 {[%emt 0:00:30]} b4 {[%emt 0:01:00]} 18. d4 {[%emt 0:07:41]} cxd4 {[%emt 0:01:39]} 19. cxd4 {[%emt 0:00:10]} a5 {[%emt 0:09:15]} 20. Be3 {[%emt 0:05:38]} Re8 {[%emt 0:03:11]} 21. d5 {[%emt 0:05:08]} Nb8 {[%emt 0:01:09]} 22. Nxe7+ {[%emt 0:00:06]} Qxe7 {[%emt 0:03:30]} 23. Bd3 {[%emt 0:02:05]} Rc8 {[%emt 0:07:09]} 24. Rc1 {[%emt 0:14:14]} Rxc1 {[%emt 0:01:38]} 25. Bxc1 {[%emt 0:00:47]} Na6 {[%emt 0:02:52]} 26. Be3 {[%emt 0:03:23]} Nc5 {[%emt 0:03:22]} 27. Bxc5 {[%emt 0:00:06]} dxc5 {[%emt 0:00:04]} 28. Qc2 {[%emt 0:01:15]} Rc8 {[%emt 0:06:20]} 29. b3 {[%emt 0:00:49]} Qd6 {[%emt 0:01:01]} 30. Qc4 {[%emt 0:03:49]} Qb6 {[%emt 0:00:39]} 31. Nf1 {[%emt 0:01:05]} Ne8 {[%emt 0:02:56]} 32. Nd2 {[%emt 0:00:15]} Nd6 {[%emt 0:00:24]} 33. Qc2 {[%emt 0:02:33]} Kf8 {[%emt 0:00:45]} 34. Qb2 {[%emt 0:01:17]} f6 {[%emt 0:00:38]} 35. Qc2 {[%emt 0:00:18]} g5 {[%emt 0:01:27]} 36. Qd1 {[%emt 0:00:52]} Bg6 {[%emt 0:00:17]} 37. Qg4 {[%emt 0:01:07]} Re8 {[%emt 0:02:25]} 38. Rc1 {[%emt 0:00:54]} Re7 {[%emt 0:01:32]} 39. Qf3 {[%emt 0:01:36]} Kg7 {[%emt 0:00:27]} 40. Qe3 {[%emt 0:00:00]} Rc7 {[%emt 0:00:00]} 41. g3 {[%emt 0:06:23]} Rc8 {[%emt 0:10:09]} 42. Kg2 {[%emt 0:02:02]} Nf7 {[%emt 0:04:54]} 43. Bb5 {[%emt 0:09:19]} Nd6 {[%emt 0:02:04]} 44. Bd7 {[%emt 0:01:21]} Rc7 {[%emt 0:00:13]} 45. Bc6 {[%emt 0:01:00]} Qa7 {[%emt 0:01:20]} 46. f3 {[%emt 0:03:51]} Be8 {[%emt 0:00:39]} 47. Bxe8 {[%emt 0:06:36]} Nxe8 {[%emt 0:00:06]} 48. Nc4 {[%emt 0:00:14]} Kf7 {[%emt 0:02:31]} 49. f4 {[%emt 0:00:29]} exf4 {[%emt 0:07:36]} 50. gxf4 {[%emt 0:00:10]} Qa6 {[%emt 0:01:41]} 51. e5 {[%emt 0:01:19]} Qb7 {[%emt 0:01:17]} 52. Rd1 {[%emt 0:00:40]} Re7 {[%emt 0:02:29]} 53. fxg5 {[%emt 0:03:32]} hxg5 {[%emt 0:00:27]} 54. e6+ {[%emt 0:00:08]} Kg7 {[%emt 0:03:16]} 55. Qf3 {[%emt 0:00:08]} Qb8 {[%emt 0:01:31]} 56. Qg3 {[%emt 0:01:18]} Qd8 {[%emt 0:01:48]} 57. Ne3 {[%emt 0:01:11]} Kg6 {[%emt 0:03:39]} 58. h4 {[%emt 0:00:21]} Qd6 {[%emt 0:03:27]} 59. hxg5 {[%emt 0:00:49]} fxg5 {[%emt 0:00:33]} 60. Nc4 {[%emt 0:00:55]} Qxg3+ {[%emt 0:03:40]} 61. Kxg3 {[%emt 0:00:02]} Nf6 {[%emt 0:00:33]} 62. Nxa5 {[%emt 0:01:42]} Ne4+ {[%emt 0:00:52]} 63. Kf3 {[%emt 0:00:07]} Nd6 {[%emt 0:00:07]} 64. Nc4 {[%emt 0:00:15]} Nb7 {[%emt 0:03:36]} 65. Ke4 {[%emt 0:01:06]} Nd8 {[%emt 0:00:23]} 66. Ne5+ {[%emt 0:00:14]} Kf6 {[%emt 0:00:30]} 67. Rf1+ {[%emt 0:00:23]} Kg7 {[%emt 0:00:04]} 68. Kf5 {[%emt 0:00:41]} Re8 {[%emt 0:00:49]} 69. Kxg5 {[%emt 0:00:55]} Nxe6+ {[%emt 0:00:04]} 70. dxe6 {[%emt 0:00:10]} Rxe6 {[%emt 0:00:02]} 71. Rf7+ {[%emt 0:01:48]} Kg8 {[%emt 0:00:05]} 72. Rf5 {[%emt 0:00:04]} Rd6 {[%emt 0:00:52]} 73. Kf4 {[%emt 0:00:28]} Rd1 {[%emt 0:00:20]} 74. Ke4 {[%emt 0:00:10]} Rd4+ {[%emt 0:01:30]} 75. Ke3 {[%emt 0:00:07]} Rd5 {[%emt 0:00:17]} 76. Nc6 {[%emt 0:01:37]} Rxf5 {[%emt 0:01:29]} 77. Ne7+ {[%emt 0:00:03]} Kf7 {[%emt 0:00:04]} 78. Nxf5 {[%emt 0:00:13]} Ke6 {[%emt 0:00:03]} 79. Ke4 {[%emt 0:01:02]} Kf6 {[%emt 0:00:47]} 80. Ne3 {[%emt 0:00:18]} 1-0

[Event "22nd ETCC Women 2019"]
[Site "Batumi"]
[Date "2019.10.27"]
[Round "4.25"]
[White "Shvayger, Yuliya"]
[Black "Socko, Monika"]
[Result "1/2-1/2"]
[ECO "C03"]
[WhiteElo "2336"]
[BlackElo "2417"]
[Annotator "NA"]
[PlyCount "144"]
[EventDate "2019.10.24"]
[EventType "team-tourn"]
[EventCountry "GEO"]
[SourceTitle "playchess.com"]
[Source "ChessBase"]
[SourceQuality "1"]
[WhiteTeam "Israel"]
[BlackTeam "Poland"]
[WhiteTeamCountry "ISR"]
[BlackTeamCountry "POL"]
[TimeControl "40/5400+30:1800+30"]

1. e4 {[%emt 0:00:00]} e6 {[%emt 0:00:00]} 2. d4 {[%emt 0:00:00]} d5 {[%emt 0:00:00]} 3. Nd2 {[%emt 0:00:12]} Be7 {[%emt 0:00:00]} 4. Ngf3 {[%emt 0:00:28]} Nf6 {[%emt 0:00:00]} 5. e5 {[%emt 0:00:21]} Nfd7 {[%emt 0:00:00]} 6. Bd3 {[%emt 0:00:47]} c5 {[%emt 0:00:00]} 7. c3 {[%emt 0:00:36]} b6 {[%emt 0:00:03]} 8. O-O {[%emt 0:00:35]} Ba6 {[%emt 0:00:24]} 9. Ne1 {[%emt 0:00:21]} Bxd3 {[%emt 0:00:51]} 10. Nxd3 {[%emt 0:00:09]} Nc6 {[%emt 0:00:04]} 11. Qg4 {[%emt 0:00:55]} g6 {[%emt 0:01:11]} 12. Nf3 {[%emt 0:00:33]} h5 {[%emt 0:01:49]} 13. Qg3 {[%emt 0:01:12]} c4 {[%emt 0:07:33]} 14. Nde1 {[%emt 0:03:25]} h4 {[%emt 0:10:11]} 15. Qg4 {[%emt 0:00:21]} Rh5 {[%emt 0:03:45]} 16. h3 {[%emt 0:01:37]} Nf8 {[%emt 0:04:18]} 17. Nc2 {[%emt 0:01:07]} Nh7 {[%emt 0:03:12]} 18. Bd2 {[%emt 0:08:09]} Qc7 {[%emt 0:03:55]} 19. b3 {[%emt 0:03:11]} Na5 {[%emt 0:01:08]} 20. Rfb1 {[%emt 0:01:29]} O-O-O {[%emt 0:04:28]} 21. Ne3 {[%emt 0:14:56]} Kb7 {[%emt 0:04:19]} 22. Nf1 {[%emt 0:03:40]} Rc8 {[%emt 0:04:48]} 23. Rb2 {[%emt 0:02:17]} Qd8 {[%emt 0:01:31]} 24. b4 {[%emt 0:04:18]} Nc6 {[%emt 0:00:47]} 25. b5 {[%emt 0:00:06]} Na5 {[%emt 0:01:23]} 26. Re1 {[%emt 0:01:50]} Ng5 {[%emt 0:02:29]} 27. Nxg5 {[%emt 0:01:10]} Bxg5 {[%emt 0:00:02]} 28. Bxg5 {[%emt 0:01:13]} Rxg5 {[%emt 0:01:00]} 29. Qe2 {[%emt 0:01:53]} Rh5 {[%emt 0:03:18]} 30. Ne3 {[%emt 0:00:20]} Rc7 {[%emt 0:02:06]} 31. Qf3 {[%emt 0:02:28]} Qe7 {[%emt 0:02:00]} 32. Rb4 {[%emt 0:00:22]} Kb8 {[%emt 0:00:33]} 33. Ng4 {[%emt 0:02:16]} Qg5 {[%emt 0:03:50]} 34. Nf6 {[%emt 0:01:22]} Rh8 {[%emt 0:00:17]} 35. Qe3 {[%emt 0:00:51]} Qf5 {[%emt 0:03:35]} 36. Qc1 {[%emt 0:00:21]} Kb7 {[%emt 0:01:59]} 37. Re3 {[%emt 0:06:39]} Qf4 {[%emt 0:00:37]} 38. Rb1 {[%emt 0:04:36]} Qh6 {[%emt 0:00:49]} 39. Qa3 {[%emt 0:00:43]} Qf8 {[%emt 0:02:10]} 40. Qb2 {[%emt 0:00:00]} Kb8 {[%emt 0:00:00]} 41. Kf1 {[%emt 0:12:53]} Qe7 {[%emt 0:05:53]} 42. Ke2 {[%emt 0:02:12]} Ka8 {[%emt 0:00:10]} 43. Qb4 {[%emt 0:04:22]} Nb7 {[%emt 0:02:42]} 44. Qxe7 {[%emt 0:01:43]} Rxe7 {[%emt 0:00:02]} 45. Kf3 {[%emt 0:00:06]} Na5 {[%emt 0:00:50]} 46. Re2 {[%emt 0:02:10]} Kb7 {[%emt 0:04:39]} 47. Kg4 {[%emt 0:00:06]} Rc7 {[%emt 0:00:44]} 48. Kg5 {[%emt 0:01:07]} Rcc8 {[%emt 0:01:25]} 49. Re3 {[%emt 0:06:08]} a6 {[%emt 0:04:35]} 50. bxa6+ {[%emt 0:10:20]} Kxa6 {[%emt 0:00:54]} 51. Rf3 {[%emt 0:01:43]} Rc7 {[%emt 0:01:56]} 52. Rf4 {[%emt 0:00:06]} b5 {[%emt 0:00:14]} 53. Rxh4 {[%emt 0:00:21]} Rb8 {[%emt 0:00:13]} 54. Rf4 {[%emt 0:12:13]} b4 {[%emt 0:02:31]} 55. cxb4 {[%emt 0:03:59]} c3 {[%emt 0:01:20]} 56. Rc1 {[%emt 0:00:05]} Rxb4 {[%emt 0:00:23]} 57. Ne8 {[%emt 0:00:08]} Rc6 {[%emt 0:01:30]} 58. Rxf7 {[%emt 0:00:30]} Rxd4 {[%emt 0:03:46]} 59. Nc7+ {[%emt 0:04:09]} Kb6 {[%emt 0:00:05]} 60. Nxe6 {[%emt 0:00:26]} Rxe6 {[%emt 0:00:27]} 61. Rf6 {[%emt 0:00:01]} Rc6 {[%emt 0:04:46]} 62. Rxc3 {[%emt 0:00:33]} Rdc4 {[%emt 0:00:02]} 63. Rd3 {[%emt 0:00:52]} Kc5 {[%emt 0:01:57]} 64. Kxg6 {[%emt 0:00:28]} d4 {[%emt 0:02:08]} 65. e6 {[%emt 0:00:47]} Rc2 {[%emt 0:05:18]} 66. Rdf3 {[%emt 0:04:29]} Nc4 {[%emt 0:01:30]} 67. R3f5+ {[%emt 0:00:05]} Kb4 {[%emt 0:00:09]} 68. Rd5 {[%emt 0:01:56]} Kc3 {[%emt 0:00:41]} 69. e7 {[%emt 0:02:50]} Rxf6+ {[%emt 0:00:35]} 70. Kxf6 {[%emt 0:00:05]} Rxf2+ {[%emt 0:00:03]} 71. Ke6 Re2+ {[%emt 0:00:44]} 72. Kf7 {[%emt 0:00:31]} Rf2+ {[%emt 0:03:17]} 1/2-1/2